[Event "*** Titled Tuesday Blitz"]
[Site "Chess.com"]
[Date "2020.05.05"]
[Round "6"]
[White "bolence16"]
[Black "czasnaszachy"]
[Result "1-0"]
[WhiteElo "2158"]
[BlackElo "2275"]
[TimeControl "180+1"]
[EndTime "11:08:30 PDT"]
[Termination "bolence16 won on time"]

1. e4 {[%clk 0:03:00.9]} 1... c5 {[%clk 0:02:43.4]} 2. Nf3 {[%clk 0:03:01.1]}
2... e6 {[%clk 0:02:42.1]} 3. c3 {[%clk 0:03:01.4]} 3... Nf6 {[%clk 0:02:40.3]}
4. e5 {[%clk 0:03:01.5]} 4... Nd5 {[%clk 0:02:36.1]} 5. d4 {[%clk 0:03:02.1]}
5... cxd4 {[%clk 0:02:36]} 6. Bc4 {[%clk 0:03:02.1]} 6... Nb6 {[%clk 0:02:33.3]}
7. Bb3 {[%clk 0:03:02.4]} 7... Nc6 {[%clk 0:02:30.5]} 8. cxd4 {[%clk 0:03:01.7]}
8... d6 {[%clk 0:02:30.2]} 9. O-O {[%clk 0:03:01.5]} 9... dxe5 {[%clk
0:02:29.3]} 10. dxe5 {[%clk 0:03:01.8]} 10... Qxd1 {[%clk 0:02:25.9]} 11. Rxd1
{[%clk 0:03:01.5]} 11... Bc5 {[%clk 0:02:21.8]} 12. Nc3 {[%clk 0:03:00.3]} 12...
O-O {[%clk 0:02:19.7]} 13. Ne4 {[%clk 0:02:59.6]} 13... Be7 {[%clk 0:02:18]} 14.
Nd6 {[%clk 0:02:55.3]} 14... Bxd6 {[%clk 0:02:08.3]} 15. exd6 {[%clk 0:02:26.6]}
15... Bd7 {[%clk 0:01:46.3]} 16. Be3 {[%clk 0:02:24.8]} 16... Na5 {[%clk
0:01:38.2]} 17. Bxb6 {[%clk 0:01:59.8]} 17... axb6 {[%clk 0:01:36.7]} 18. Rac1
{[%clk 0:01:59.3]} 18... Nxb3 {[%clk 0:01:34.6]} 19. axb3 {[%clk 0:01:59.2]}
19... Rfc8 {[%clk 0:01:34.2]} 20. Rc7 {[%clk 0:01:56.5]} 20... Bc6 {[%clk
0:01:27.1]} 21. Ne5 {[%clk 0:01:15.5]} 21... f6 {[%clk 0:01:09.1]} 22. Nxc6
{[%clk 0:00:35.9]} 22... bxc6 {[%clk 0:00:58.3]} 23. h3 {[%clk 0:00:35.3]} 23...
Kf8 {[%clk 0:00:40.6]} 24. Rb7 {[%clk 0:00:35.3]} 24... Rcb8 {[%clk 0:00:34.2]}
25. Re7 {[%clk 0:00:30.5]} 25... e5 {[%clk 0:00:32.1]} 26. Rc7 {[%clk
0:00:30.3]} 26... c5 {[%clk 0:00:28.6]} 27. d7 {[%clk 0:00:27]} 27... Rd8 {[%clk
0:00:26.8]} 28. Rd6 {[%clk 0:00:27.2]} 28... Ke7 {[%clk 0:00:25.4]} 29. Rxb6
{[%clk 0:00:27.2]} 29... Rxd7 {[%clk 0:00:22.3]} 30. Rxd7+ {[%clk 0:00:27.3]}
30... Kxd7 {[%clk 0:00:22.6]} 31. Rb7+ {[%clk 0:00:28.2]} 31... Ke6 {[%clk
0:00:20.2]} 32. Rxg7 {[%clk 0:00:28.5]} 32... Rb8 {[%clk 0:00:19.9]} 33. Rg3
{[%clk 0:00:28.4]} 33... h5 {[%clk 0:00:18.9]} 34. Rc3 {[%clk 0:00:28.3]} 34...
Kd5 {[%clk 0:00:18.1]} 35. g4 {[%clk 0:00:28.6]} 35... hxg4 {[%clk 0:00:17.7]}
36. hxg4 {[%clk 0:00:29.5]} 36... Rb4 {[%clk 0:00:17.9]} 37. Rg3 {[%clk
0:00:28]} 37... Ke4 {[%clk 0:00:11.7]} 38. Kg2 {[%clk 0:00:25.5]} 38... Kf4
{[%clk 0:00:10.8]} 39. Kh3 {[%clk 0:00:20.9]} 39... Rd4 {[%clk 0:00:10.3]} 40.
Rc3 {[%clk 0:00:16.6]} 40... Rd2 {[%clk 0:00:08.3]} 41. Kg2 {[%clk 0:00:16.4]}
41... Rxb2 {[%clk 0:00:07.9]} 42. Rc4+ {[%clk 0:00:16.7]} 42... Kg5 {[%clk
0:00:07]} 43. Rxc5 {[%clk 0:00:17]} 43... Rxb3 {[%clk 0:00:07.2]} 44. f3 {[%clk
0:00:17.4]} 44... Kf4 {[%clk 0:00:06.1]} 45. Rc4+ {[%clk 0:00:17.3]} 45... Ke3
{[%clk 0:00:06.2]} 46. Rc6 {[%clk 0:00:14.8]} 46... Rb2+ {[%clk 0:00:04.5]} 47.
Kg3 {[%clk 0:00:15]} 47... f5 {[%clk 0:00:03.5]} 48. gxf5 {[%clk 0:00:14.8]}
48... Rb7 {[%clk 0:00:02.7]} 49. f6 {[%clk 0:00:14.6]} 49... Rf7 {[%clk
0:00:02.7]} 50. Kg4 {[%clk 0:00:14.8]} 50... e4 {[%clk 0:00:03.1]} 51. fxe4
{[%clk 0:00:14.7]} 51... Kxe4 {[%clk 0:00:03.6]} 52. Kg5 {[%clk 0:00:15.6]}
52... Kd5 {[%clk 0:00:04]} 53. Ra6 {[%clk 0:00:15.3]} 53... Ke5 {[%clk
0:00:04.4]} 54. Kg6 {[%clk 0:00:15.3]} 54... Rf8 {[%clk 0:00:04.4]} 55. f7
{[%clk 0:00:15.6]} 55... Rb8 {[%clk 0:00:02.7]} 56. Kg7 {[%clk 0:00:15.8]} 56...
Rb7 {[%clk 0:00:03]} 57. Kg8 {[%clk 0:00:16.2]} 1-0

[Event "*** Titled Tuesday Blitz"]
[Site "Chess.com"]
[Date "2020.05.05"]
[Round "6"]
[White "KaterinaMiroshnik"]
[Black "tioloko"]
[Result "0-1"]
[WhiteElo "2441"]
[BlackElo "2627"]
[TimeControl "180+1"]
[EndTime "11:08:32 PDT"]
[Termination "tioloko won by resignation"]

1. d3 {[%clk 0:03:00.8]} 1... c5 {[%clk 0:02:53]} 2. Nd2 {[%clk 0:02:56.6]} 2...
Nc6 {[%clk 0:02:52.2]} 3. Ngf3 {[%clk 0:02:56.9]} 3... d5 {[%clk 0:02:49.4]} 4.
e4 {[%clk 0:02:57.2]} 4... g6 {[%clk 0:02:48.8]} 5. Be2 {[%clk 0:02:57.1]} 5...
Bg7 {[%clk 0:02:48.3]} 6. O-O {[%clk 0:02:57.6]} 6... Nf6 {[%clk 0:02:48.8]} 7.
c3 {[%clk 0:02:57.5]} 7... O-O {[%clk 0:02:48.6]} 8. Qc2 {[%clk 0:02:57.7]} 8...
e5 {[%clk 0:02:49]} 9. Re1 {[%clk 0:02:57.9]} 9... Re8 {[%clk 0:02:49.1]} 10.
Nf1 {[%clk 0:02:58]} 10... h6 {[%clk 0:02:46.6]} 11. Ng3 {[%clk 0:02:56.8]}
11... d4 {[%clk 0:02:42.6]} 12. Bd2 {[%clk 0:02:54.5]} 12... Be6 {[%clk
0:02:41.3]} 13. c4 {[%clk 0:02:52.3]} 13... a6 {[%clk 0:02:40.7]} 14. Reb1
{[%clk 0:02:43.6]} 14... a5 {[%clk 0:02:30.2]} 15. Ne1 {[%clk 0:02:37.3]} 15...
Nd7 {[%clk 0:02:27.8]} 16. f4 {[%clk 0:02:32.5]} 16... exf4 {[%clk 0:02:25.1]}
17. Bxf4 {[%clk 0:02:33.4]} 17... Nde5 {[%clk 0:02:25.4]} 18. Qc1 {[%clk
0:02:28.8]} 18... Kh7 {[%clk 0:02:22.6]} 19. Nf3 {[%clk 0:02:28.2]} 19... Bd7
{[%clk 0:02:11.7]} 20. Qd2 {[%clk 0:02:20]} 20... Qe7 {[%clk 0:02:03.1]} 21. Rf1
{[%clk 0:02:17.9]} 21... Rf8 {[%clk 0:02:00.8]} 22. Nxe5 {[%clk 0:02:16.7]}
22... Nxe5 {[%clk 0:01:59.4]} 23. Rf2 {[%clk 0:02:11.2]} 23... b5 {[%clk
0:01:57]} 24. b3 {[%clk 0:02:09.9]} 24... a4 {[%clk 0:01:55.8]} 25. Raf1 {[%clk
0:02:08.7]} 25... axb3 {[%clk 0:01:53.4]} 26. axb3 {[%clk 0:02:09.6]} 26... Ra3
{[%clk 0:01:50]} 27. Bd1 {[%clk 0:02:07.3]} 27... bxc4 {[%clk 0:01:48]} 28. dxc4
{[%clk 0:02:08.2]} 28... d3 {[%clk 0:01:45.2]} 29. Kh1 {[%clk 0:01:59.1]} 29...
Be6 {[%clk 0:01:38.1]} 30. Bxe5 {[%clk 0:01:54.3]} 30... Bxe5 {[%clk 0:01:36.9]}
31. Qxd3 {[%clk 0:01:55.2]} 31... Rd8 {[%clk 0:01:32.9]} 32. Qc2 {[%clk
0:01:41.4]} 32... Qh4 {[%clk 0:01:27.6]} 33. Rf3 {[%clk 0:01:30.1]} 33... Ra1
{[%clk 0:01:13.3]} 34. Be2 {[%clk 0:01:18.3]} 34... Rxf1+ {[%clk 0:01:11.3]} 35.
Bxf1 {[%clk 0:01:19.2]} 35... Rd4 {[%clk 0:01:09.1]} 36. Re3 {[%clk 0:00:59.7]}
36... Bxg3 {[%clk 0:01:05.7]} 37. Rxg3 {[%clk 0:00:58.5]} 37... Rxe4 {[%clk
0:01:05.8]} 38. Rf3 {[%clk 0:00:55.7]} 38... Re1 {[%clk 0:01:02.8]} 39. Qf2
{[%clk 0:00:53.5]} 39... Qxf2 {[%clk 0:00:56.7]} 40. Rxf2 {[%clk 0:00:54.4]}
40... Rb1 {[%clk 0:00:57.2]} 41. Rf3 {[%clk 0:00:50.4]} 41... Bf5 {[%clk
0:00:49.3]} 42. Kg1 {[%clk 0:00:48.4]} 42... Kg7 {[%clk 0:00:49.5]} 43. Kf2
{[%clk 0:00:42.4]} 43... Bc2 {[%clk 0:00:49.9]} 44. Be2 {[%clk 0:00:39.7]} 44...
Rxb3 {[%clk 0:00:46]} 45. Rxb3 {[%clk 0:00:35.2]} 45... Bxb3 {[%clk 0:00:46.9]}
46. Ke3 {[%clk 0:00:36.1]} 46... Kf6 {[%clk 0:00:45.5]} 47. Bd3 {[%clk 0:00:36]}
47... Ke5 {[%clk 0:00:44.3]} 48. g3 {[%clk 0:00:36.6]} 48... f5 {[%clk
0:00:43.9]} 49. Be2 {[%clk 0:00:36.8]} 49... g5 {[%clk 0:00:43.9]} 50. h3 {[%clk
0:00:35.3]} 50... f4+ {[%clk 0:00:44.1]} 51. gxf4+ {[%clk 0:00:35.3]} 51...
gxf4+ {[%clk 0:00:45]} 52. Kd3 {[%clk 0:00:35.7]} 52... Ba4 {[%clk 0:00:43]} 53.
Bf3 {[%clk 0:00:34.8]} 53... Bd7 {[%clk 0:00:42.7]} 54. Bg2 {[%clk 0:00:35.1]}
54... Bf5+ {[%clk 0:00:42.5]} 55. Kc3 {[%clk 0:00:35.5]} 55... Be4 {[%clk
0:00:42.8]} 56. Bf1 {[%clk 0:00:36]} 56... f3 {[%clk 0:00:42.6]} 57. Kd2 {[%clk
0:00:36.3]} 57... Kf4 {[%clk 0:00:40.4]} 58. h4 {[%clk 0:00:34.3]} 58... Bf5
{[%clk 0:00:35.2]} 59. h5 {[%clk 0:00:31.8]} 59... Bg4 {[%clk 0:00:32.3]} 60.
Ke1 {[%clk 0:00:30.4]} 60... Ke3 {[%clk 0:00:31.5]} 61. Be2 {[%clk 0:00:25.8]}
61... f2+ {[%clk 0:00:29.9]} 0-1

[Event "*** Titled Tuesday Blitz"]
[Site "Chess.com"]
[Date "2020.05.05"]
[Round "6"]
[White "gurelediz"]
[Black "THE_PLAYER6"]
[Result "1-0"]
[WhiteElo "2573"]
[BlackElo "2421"]
[TimeControl "180+1"]
[EndTime "11:08:33 PDT"]
[Termination "gurelediz won by resignation"]

1. e4 {[%clk 0:02:58.8]} 1... c5 {[%clk 0:02:56.3]} 2. Nf3 {[%clk 0:02:58.9]}
2... d6 {[%clk 0:02:55.7]} 3. d4 {[%clk 0:02:59.4]} 3... cxd4 {[%clk 0:02:55.6]}
4. Nxd4 {[%clk 0:03:00.3]} 4... Nf6 {[%clk 0:02:56.1]} 5. Nc3 {[%clk 0:03:00.9]}
5... a6 {[%clk 0:02:56.1]} 6. Bg5 {[%clk 0:03:01]} 6... e6 {[%clk 0:02:56]} 7.
f4 {[%clk 0:03:01]} 7... h6 {[%clk 0:02:56]} 8. Bh4 {[%clk 0:03:01]} 8... Qb6
{[%clk 0:02:56.5]} 9. a3 {[%clk 0:03:00]} 9... Be7 {[%clk 0:02:56]} 10. Bf2
{[%clk 0:03:00.5]} 10... Qc7 {[%clk 0:02:55.6]} 11. Qf3 {[%clk 0:03:01]} 11...
Nbd7 {[%clk 0:02:56]} 12. O-O-O {[%clk 0:02:59.9]} 12... b5 {[%clk 0:02:56.3]}
13. g4 {[%clk 0:02:48.4]} 13... Bb7 {[%clk 0:02:55.8]} 14. g5 {[%clk 0:02:47.4]}
14... hxg5 {[%clk 0:02:53]} 15. fxg5 {[%clk 0:02:48.3]} 15... Ne5 {[%clk
0:02:52.7]} 16. Qg2 {[%clk 0:02:38.1]} 16... Nfg4 {[%clk 0:02:51.6]} 17. h4
{[%clk 0:02:37.3]} 17... Nxf2 {[%clk 0:02:48.6]} 18. Qxf2 {[%clk 0:02:38.2]}
18... Bxg5+ {[%clk 0:02:48.6]} 19. hxg5 {[%clk 0:02:32.4]} 19... Rxh1 {[%clk
0:02:48]} 20. Bxb5+ {[%clk 0:02:32.9]} 20... axb5 {[%clk 0:02:45.3]} 21. Rxh1
{[%clk 0:02:33.3]} 21... b4 {[%clk 0:02:35.9]} 22. Ncb5 {[%clk 0:02:23.7]} 22...
Nd3+ {[%clk 0:02:22.9]} 23. Kb1 {[%clk 0:02:14.3]} 23... Nxf2 {[%clk 0:02:20.1]}
24. Nxc7+ {[%clk 0:02:12.6]} 24... Kd8 {[%clk 0:02:07]} 25. Rf1 {[%clk
0:02:09.6]} 25... Kxc7 {[%clk 0:01:32.2]} 26. Rxf2 {[%clk 0:02:04.2]} 26... bxa3
{[%clk 0:01:23.2]} 27. Rxf7+ {[%clk 0:02:03.1]} 27... Kb6 {[%clk 0:01:22.8]} 28.
Nxe6 {[%clk 0:01:55.3]} 28... a2+ {[%clk 0:01:15.1]} 29. Ka1 {[%clk 0:01:54.5]}
29... Bxe4 {[%clk 0:01:11.7]} 30. Nd4 {[%clk 0:01:51.9]} 30... Kc5 {[%clk
0:00:56.1]} 31. c3 {[%clk 0:01:47.3]} 31... Rh8 {[%clk 0:00:46]} 32. Rxg7 {[%clk
0:01:20.5]} 32... Bd5 {[%clk 0:00:31.2]} 33. b3 {[%clk 0:01:11.9]} 33... Rh2
{[%clk 0:00:21]} 34. g6 {[%clk 0:01:11.4]} 34... Be4 {[%clk 0:00:17.6]} 35. Rg8
{[%clk 0:00:50.5]} 35... Kd5 {[%clk 0:00:13.4]} 36. g7 {[%clk 0:00:48.1]} 36...
Rg2 {[%clk 0:00:13.8]} 37. Ra8 {[%clk 0:00:33]} 37... Rg1+ {[%clk 0:00:09.6]}
38. Kxa2 {[%clk 0:00:32.2]} 38... Bb1+ {[%clk 0:00:09.8]} 39. Kb2 {[%clk
0:00:29.1]} 39... Bh7 {[%clk 0:00:10.4]} 40. Ra7 {[%clk 0:00:21.5]} 40... Rg2+
{[%clk 0:00:10.4]} 41. Ka3 {[%clk 0:00:20.9]} 41... Ke5 {[%clk 0:00:10.5]} 42.
Kb4 {[%clk 0:00:17.3]} 42... Kf6 {[%clk 0:00:10.7]} 43. Nb5 {[%clk 0:00:16.1]}
43... d5 {[%clk 0:00:10.3]} 44. Kc5 {[%clk 0:00:15.4]} 44... Bc2 {[%clk
0:00:06]} 45. b4 {[%clk 0:00:14.9]} 45... Rxg7 {[%clk 0:00:05.3]} 46. Rxg7
{[%clk 0:00:14.4]} 46... Kxg7 {[%clk 0:00:06.2]} 47. Kxd5 {[%clk 0:00:15.3]}
47... Kf7 {[%clk 0:00:06.7]} 48. Kd6 {[%clk 0:00:14.8]} 48... Ke8 {[%clk
0:00:06.2]} 49. Kc7 {[%clk 0:00:14.7]} 49... Bd3 {[%clk 0:00:05.7]} 50. Nd6+
{[%clk 0:00:13.9]} 50... Ke7 {[%clk 0:00:05.9]} 51. b5 {[%clk 0:00:14.4]} 51...
Ke6 {[%clk 0:00:04.8]} 52. b6 {[%clk 0:00:14.3]} 52... Ba6 {[%clk 0:00:05.5]}
53. c4 {[%clk 0:00:11.9]} 53... Ke5 {[%clk 0:00:05.2]} 54. c5 {[%clk 0:00:11.8]}
54... Kd5 {[%clk 0:00:05.5]} 55. c6 {[%clk 0:00:11.9]} 55... Bb7 {[%clk
0:00:04.6]} 56. cxb7 {[%clk 0:00:10.9]} 1-0

[Event "*** Titled Tuesday Blitz"]
[Site "Chess.com"]
[Date "2020.05.05"]
[Round "6"]
[White "WiktoriaPOL"]
[Black "chenxiaoyuer"]
[Result "1/2-1/2"]
[WhiteElo "2031"]
[BlackElo "2210"]
[TimeControl "180+1"]
[EndTime "11:08:33 PDT"]
[Termination "Game drawn by repetition"]

1. c4 {[%clk 0:03:00.9]} 1... Nf6 {[%clk 0:02:58.1]} 2. Nc3 {[%clk 0:03:00.1]}
2... g6 {[%clk 0:02:57.5]} 3. g3 {[%clk 0:03:00.4]} 3... Bg7 {[%clk 0:02:57.4]}
4. Bg2 {[%clk 0:03:01]} 4... O-O {[%clk 0:02:57.3]} 5. e4 {[%clk 0:03:01.6]}
5... d6 {[%clk 0:02:57.2]} 6. Nge2 {[%clk 0:03:02.2]} 6... c5 {[%clk 0:02:56]}
7. O-O {[%clk 0:03:02.7]} 7... Nc6 {[%clk 0:02:56.1]} 8. d3 {[%clk 0:03:02.6]}
8... Ne8 {[%clk 0:02:51.6]} 9. f4 {[%clk 0:03:03]} 9... Nc7 {[%clk 0:02:50.9]}
10. Be3 {[%clk 0:03:00.8]} 10... Bg4 {[%clk 0:02:49.1]} 11. h3 {[%clk
0:03:00.2]} 11... Bxe2 {[%clk 0:02:48.2]} 12. Qxe2 {[%clk 0:02:58.3]} 12... Bd4
{[%clk 0:02:35.4]} 13. g4 {[%clk 0:02:55]} 13... f6 {[%clk 0:02:26.3]} 14. f5
{[%clk 0:02:43.4]} 14... g5 {[%clk 0:02:19.6]} 15. Bxd4 {[%clk 0:02:33.9]} 15...
Nxd4 {[%clk 0:02:18.2]} 16. Qf2 {[%clk 0:02:32.8]} 16... Rb8 {[%clk 0:01:57.5]}
17. a4 {[%clk 0:02:25.7]} 17... Na6 {[%clk 0:01:53.3]} 18. h4 {[%clk 0:02:21.9]}
18... h6 {[%clk 0:01:51.4]} 19. hxg5 {[%clk 0:02:16.4]} 19... hxg5 {[%clk
0:01:50.2]} 20. Qg3 {[%clk 0:02:11.4]} 20... Kg7 {[%clk 0:01:43.6]} 21. Kf2
{[%clk 0:02:10.7]} 21... Nb4 {[%clk 0:01:42.1]} 22. Rh1 {[%clk 0:02:08.7]} 22...
Qa5 {[%clk 0:01:30.2]} 23. Rh3 {[%clk 0:02:01.4]} 23... Rh8 {[%clk 0:01:19.3]}
24. Rah1 {[%clk 0:01:57.1]} 24... Rxh3 {[%clk 0:01:12.9]} 25. Qxh3 {[%clk
0:01:55.4]} 25... Rg8 {[%clk 0:00:46.7]} 26. Qh7+ {[%clk 0:00:59.1]} 26... Kf8
{[%clk 0:00:45.6]} 27. Bf1 {[%clk 0:00:57.7]} 27... Na2 {[%clk 0:00:22.1]} 28.
Nd5 {[%clk 0:00:39.1]} 28... Qd2+ {[%clk 0:00:13.8]} 29. Kg3 {[%clk 0:00:33]}
29... Qe1+ {[%clk 0:00:12.6]} 30. Kg2 {[%clk 0:00:29.4]} 30... Qd2+ {[%clk
0:00:12.7]} 31. Kg3 {[%clk 0:00:26.4]} 31... Nc6 {[%clk 0:00:12.1]} 32. Nc7
{[%clk 0:00:19]} 32... Qf4+ {[%clk 0:00:10.4]} 33. Kg2 {[%clk 0:00:17.9]} 33...
Qxg4+ {[%clk 0:00:10.4]} 34. Kf2 {[%clk 0:00:15.6]} 34... Qf4+ {[%clk
0:00:10.4]} 35. Kg1 {[%clk 0:00:05]} 35... Qg3+ {[%clk 0:00:05.3]} 36. Bg2
{[%clk 0:00:05]} 36... Nd8 {[%clk 0:00:02.7]} 37. Ne6+ {[%clk 0:00:02.2]} 37...
Nxe6 {[%clk 0:00:02.9]} 38. fxe6 {[%clk 0:00:02.4]} 38... Qe3+ {[%clk
0:00:03.4]} 39. Kf1 {[%clk 0:00:01.5]} 39... Qxd3+ {[%clk 0:00:02.4]} 40. Kg1
{[%clk 0:00:01.6]} 40... Qe3+ {[%clk 0:00:02.7]} 41. Kf1 {[%clk 0:00:01.9]}
41... Qf4+ {[%clk 0:00:02.7]} 42. Kg1 {[%clk 0:00:02]} 42... Qc1+ {[%clk
0:00:02.2]} 43. Kh2 {[%clk 0:00:01.8]} 43... Qf4+ {[%clk 0:00:01.8]} 44. Kg1
{[%clk 0:00:02.1]} 44... Qe3+ {[%clk 0:00:02.1]} 45. Kf1 {[%clk 0:00:02.2]}
45... Qc1+ {[%clk 0:00:02.5]} 46. Kf2 {[%clk 0:00:01.9]} 46... Qxb2+ {[%clk
0:00:02.4]} 47. Kf1 {[%clk 0:00:01.8]} 47... Qc1+ {[%clk 0:00:02.4]} 48. Kf2
{[%clk 0:00:02]} 48... Qf4+ {[%clk 0:00:02.6]} 49. Kg1 {[%clk 0:00:01.6]} 49...
Qe3+ {[%clk 0:00:02.7]} 50. Kf1 {[%clk 0:00:01.4]} 50... Qc1+ {[%clk 0:00:02.6]}
51. Kf2 {[%clk 0:00:01.6]} 51... Qd2+ {[%clk 0:00:02.5]} 52. Kf1 {[%clk
0:00:01.8]} 52... Qf4+ {[%clk 0:00:02.4]} 53. Ke1 {[%clk 0:00:01.9]} 53... Qe3+
{[%clk 0:00:02.2]} 54. Kf1 {[%clk 0:00:02.2]} 54... Qf4+ {[%clk 0:00:01.4]} 55.
Ke1 {[%clk 0:00:02]} 55... Qe3+ {[%clk 0:00:01.4]} 56. Kf1 {[%clk 0:00:02.3]}
1/2-1/2

[Event "*** Titled Tuesday Blitz"]
[Site "Chess.com"]
[Date "2020.05.05"]
[Round "6"]
[White "Tsukasa06"]
[Black "Kate1606"]
[Result "0-1"]
[WhiteElo "2218"]
[BlackElo "2109"]
[TimeControl "180+1"]
[EndTime "11:08:33 PDT"]
[Termination "Kate1606 won by resignation"]

1. e4 {[%clk 0:03:00.9]} 1... c5 {[%clk 0:02:59.8]} 2. c3 {[%clk 0:03:00.3]}
2... g6 {[%clk 0:02:59.8]} 3. d4 {[%clk 0:02:59.7]} 3... cxd4 {[%clk 0:03:00.5]}
4. cxd4 {[%clk 0:02:59.5]} 4... d5 {[%clk 0:03:00.6]} 5. Nc3 {[%clk 0:02:58.5]}
5... dxe4 {[%clk 0:02:54]} 6. Bc4 {[%clk 0:02:55.5]} 6... Bg7 {[%clk 0:02:51.4]}
7. Qb3 {[%clk 0:02:54.7]} 7... e6 {[%clk 0:02:38.1]} 8. Nge2 {[%clk 0:02:53.1]}
8... Nf6 {[%clk 0:02:33.3]} 9. Bg5 {[%clk 0:02:52.1]} 9... h6 {[%clk 0:02:20.8]}
10. Bh4 {[%clk 0:02:51.6]} 10... g5 {[%clk 0:02:18.8]} 11. Bg3 {[%clk
0:02:50.9]} 11... O-O {[%clk 0:02:14.7]} 12. O-O-O {[%clk 0:02:45.3]} 12... Nc6
{[%clk 0:02:09.7]} 13. d5 {[%clk 0:02:26.7]} 13... Na5 {[%clk 0:02:07.9]} 14.
Qb4 {[%clk 0:02:26.3]} 14... Nxc4 {[%clk 0:02:06.1]} 15. Qxc4 {[%clk 0:02:26]}
15... exd5 {[%clk 0:02:03.4]} 16. Nxd5 {[%clk 0:02:25.2]} 16... Nxd5 {[%clk
0:02:01.1]} 17. Rxd5 {[%clk 0:02:23.1]} 17... Qb6 {[%clk 0:01:44.8]} 18. Rb5
{[%clk 0:02:16.2]} 18... Be6 {[%clk 0:01:44.7]} 19. Qb4 {[%clk 0:02:02.6]} 19...
Rac8+ {[%clk 0:01:32.6]} 20. Kb1 {[%clk 0:02:00.9]} 20... Qa6 {[%clk 0:01:28.4]}
21. Qa5 {[%clk 0:01:54.9]} 21... Bc4 {[%clk 0:01:06.4]} 22. Qxa6 {[%clk
0:01:39.6]} 22... bxa6 {[%clk 0:01:06.3]} 23. Rb7 {[%clk 0:01:32.5]} 23... Bxe2
{[%clk 0:01:02.5]} 24. Rxa7 {[%clk 0:01:32.2]} 24... Bd3+ {[%clk 0:00:59.4]} 25.
Ka1 {[%clk 0:01:31.9]} 25... Rc2 {[%clk 0:00:52.6]} 26. Rb7 {[%clk 0:01:31.7]}
26... Rfc8 {[%clk 0:00:47.5]} 27. a4 {[%clk 0:01:27.4]} 27... R8c4 {[%clk
0:00:37.4]} 28. Ka2 {[%clk 0:01:20.1]} 28... Rxa4+ {[%clk 0:00:27.4]} 29. Kb3
{[%clk 0:01:18.6]} 29... Rxb2+ {[%clk 0:00:26.4]} 30. Kxa4 {[%clk 0:01:17.9]}
30... Rxb7 {[%clk 0:00:27.1]} 31. Rc1 {[%clk 0:01:16.8]} 31... Bb5+ {[%clk
0:00:26.6]} 32. Ka3 {[%clk 0:01:12.9]} 32... Bf8+ {[%clk 0:00:26.9]} 33. Ka2
{[%clk 0:01:12]} 33... Kh7 {[%clk 0:00:22.7]} 34. Rc8 {[%clk 0:01:10.4]} 34...
Bg7 {[%clk 0:00:21.5]} 35. Rc5 {[%clk 0:01:00.3]} 35... Bd3 {[%clk 0:00:20]} 36.
Be5 {[%clk 0:00:57.8]} 36... Bxe5 {[%clk 0:00:18.6]} 37. Rxe5 {[%clk 0:00:57.3]}
37... Bb1+ {[%clk 0:00:17.8]} 38. Ka1 {[%clk 0:00:56.4]} 38... Bd3 {[%clk
0:00:17.7]} 39. f3 {[%clk 0:00:55.2]} 39... exf3 {[%clk 0:00:16.6]} 40. gxf3
{[%clk 0:00:55.1]} 40... Kg6 {[%clk 0:00:15.7]} 41. Rd5 {[%clk 0:00:54.7]} 41...
Bf5 {[%clk 0:00:15.1]} 42. Rd6+ {[%clk 0:00:52.6]} 42... f6 {[%clk 0:00:14.1]}
43. Rxa6 {[%clk 0:00:53.5]} 43... Rb1+ {[%clk 0:00:12.2]} 44. Ka2 {[%clk
0:00:52.8]} 44... Rh1 {[%clk 0:00:12.3]} 45. Ra8 {[%clk 0:00:51.4]} 45... Rxh2+
{[%clk 0:00:12.3]} 46. Kb3 {[%clk 0:00:52.3]} 46... Rf2 {[%clk 0:00:12.3]} 47.
Rg8+ {[%clk 0:00:50.1]} 47... Kh5 {[%clk 0:00:12.4]} 48. Rb8 {[%clk 0:00:51]}
48... Rxf3+ {[%clk 0:00:12.6]} 49. Kc4 {[%clk 0:00:48.7]} 49... Kg4 {[%clk
0:00:12.8]} 50. Rh8 {[%clk 0:00:46.8]} 50... Rf4+ {[%clk 0:00:13.4]} 51. Kc3
{[%clk 0:00:46.2]} 51... h5 {[%clk 0:00:14.3]} 52. Kd2 {[%clk 0:00:46.2]} 52...
h4 {[%clk 0:00:14.4]} 53. Ke2 {[%clk 0:00:46.3]} 53... Kg3 {[%clk 0:00:14.5]}
54. Ke3 {[%clk 0:00:45.6]} 54... Rf3+ {[%clk 0:00:14.3]} 55. Ke2 {[%clk
0:00:46.5]} 55... Bg4 {[%clk 0:00:14.3]} 56. Rh6 {[%clk 0:00:45.2]} 56... Rf5+
{[%clk 0:00:14.2]} 57. Ke1 {[%clk 0:00:44.5]} 57... h3 {[%clk 0:00:14.8]} 58.
Rh8 {[%clk 0:00:42.9]} 58... h2 {[%clk 0:00:14.3]} 59. Rh7 {[%clk 0:00:42.1]}
59... Kg2 {[%clk 0:00:14.1]} 60. Kd2 {[%clk 0:00:41.2]} 60... h1=Q {[%clk
0:00:14.4]} 61. Rxh1 {[%clk 0:00:40.7]} 61... Kxh1 {[%clk 0:00:15.3]} 62. Ke3
{[%clk 0:00:41.6]} 62... Rf3+ {[%clk 0:00:15]} 63. Ke4 {[%clk 0:00:41.3]} 63...
Bh5 {[%clk 0:00:15.1]} 64. Kd5 {[%clk 0:00:39.9]} 64... g4 {[%clk 0:00:14.8]}
65. Ke4 {[%clk 0:00:40.8]} 65... g3 {[%clk 0:00:15]} 66. Kd5 {[%clk 0:00:39]}
66... g2 {[%clk 0:00:15.2]} 67. Ke6 {[%clk 0:00:39.9]} 67... g1=Q {[%clk
0:00:14.7]} 0-1